bitfinex-derivatives/quotes_BTCF0:USTF0_20250809
["timestamp","ask_amount","ask_price","bid_price","bid_amount"]
[1754780687692,0.54930098,116710.0,116700.0,0.28297424]
[1754780688394,0.2779125,116710.0,116700.0,0.28297424]
[1754780688594,0.53987083,116710.0,116700.0,0.54493257]
[1754780688794,0.53987083,116710.0,116700.0,0.28297424]
[1754780688994,0.2779125,116710.0,116700.0,0.28297424]
[1754780689196,0.53987083,116710.0,116700.0,0.28297424]
[1754780689497,0.2779125,116710.0,116700.0,0.28297424]
[1754780689797,0.54960456,116710.0,116700.0,0.28297424]
[1754780689997,0.54960456,116710.0,116700.0,0.54493257]
[1754780690299,0.54960456,116710.0,116700.0,0.46780323]
[1754780690598,0.54960456,116710.0,116700.0,0.54493257]
[1754780691697,0.28764623,116710.0,116700.0,0.54493257]
[1754780691998,0.54960456,116710.0,116700.0,0.54493257]
[1754780692198,0.28764623,116710.0,116700.0,0.54493257]
[1754780692499,0.54960456,116710.0,116700.0,0.54493257]
[1754780692693,0.54960456,116710.0,116700.0,0.28297424]
[1754780692896,0.54960456,116710.0,116700.0,0.54493257]
[1754780693199,0.28764623,116710.0,116700.0,0.54493257]
[1754780693395,0.54960456,116710.0,116700.0,0.54493257]
[1754780693595,0.28764623,116710.0,116700.0,0.54493257]
[1754780693795,0.54960456,116710.0,116700.0,0.54493257]
[1754780694895,0.54960456,116710.0,116700.0,0.28297424]
[1754780695095,0.54960456,116710.0,116700.0,0.54493257]
[1754780696196,0.54960456,116710.0,116700.0,0.28297424]
[1754780696402,0.2779125,116710.0,116700.0,0.54493257]
[1754780696604,0.53987083,116710.0,116700.0,0.8068909]
[1754780696792,0.53987083,116710.0,116700.0,0.54493257]
[1754780696995,0.54974143,116710.0,116700.0,0.54493257]
[1754780697903,0.2877831,116710.0,116700.0,0.28297424]
[1754780698100,0.2877831,116710.0,116700.0,0.54493257]
[1754780698101,0.54974143,116710.0,116700.0,0.54493257]
[1754780698302,0.54974143,116710.0,116700.0,0.28297424]
[1754780698605,0.54974143,116710.0,116700.0,0.54493257]
[1754780699505,0.2779125,116710.0,116700.0,0.54493257]
[1754780699705,0.53987083,116710.0,116700.0,0.2058449]
[1754780699906,0.53987083,116710.0,116700.0,0.46780323]
[1754780701002,0.28771659,116710.0,116700.0,0.46780323]
[1754780701201,0.54987492,116710.0,116700.0,0.46780323]
[1754780701396,0.28791659,116710.0,116700.0,0.46780323]
[1754780701602,0.54987492,116710.0,116700.0,0.46780323]
[1754780701807,0.54987492,116710.0,116700.0,0.54493257]
[1754780702207,0.28791659,116710.0,116700.0,0.54493257]
[1754780702505,0.28791659,116710.0,116700.0,0.46780323]
[1754780702706,0.54987492,116710.0,116700.0,0.46780323]
[1754780702907,0.28791659,116710.0,116700.0,0.2058449]
[1754780703110,0.54987492,116710.0,116700.0,0.46780323]
[1754780703408,0.28791659,116710.0,116700.0,0.2058449]
[1754780703608,0.54987492,116710.0,116700.0,0.46780323]
[1754780703809,0.28791659,116710.0,116700.0,0.46780323]
[1754780704109,0.54987492,116710.0,116700.0,0.46780323]
[1754780704709,0.54987492,116710.0,116700.0,0.2058449]
[1754780704908,0.54987492,116710.0,116700.0,0.46780323]
[1754780705209,0.54987492,116710.0,116700.0,0.2058449]
[1754780706209,0.28791659,116710.0,116700.0,0.2058449]
[1754780706408,0.54987492,116710.0,116700.0,0.2058449]
[1754780708410,0.28791659,116710.0,116700.0,0.2058449]
[1754780708611,0.54987492,116710.0,116700.0,0.2058449]
[1754780709011,0.28791659,116710.0,116700.0,0.2058449]
[1754780709212,0.54987492,116710.0,116700.0,0.2058449]
[1754780709513,0.28791659,116710.0,116700.0,0.2058449]
[1754780709812,0.54987492,116710.0,116700.0,0.2058449]
[1754780710007,0.28791659,116710.0,116700.0,0.2058449]
[1754780710211,0.54007083,116710.0,116700.0,0.46780323]
[1754780710613,0.54007083,116710.0,116700.0,0.2058449]
[1754780710814,0.54007083,116710.0,116700.0,0.46780323]
[1754780711215,0.54007083,116710.0,116700.0,0.2058449]
[1754780711906,0.54007083,116710.0,116700.0,0.5666449]
[1754780712410,0.54950481,116710.0,116700.0,0.5666449]
[1754780712710,0.28754648,116710.0,116700.0,0.64377424]
[1754780713012,0.54950481,116710.0,116700.0,0.90573257]
[1754780713215,0.28754648,116710.0,116700.0,0.90573257]
[1754780713524,0.54950481,116710.0,116700.0,0.90573257]
[1754780713815,0.54950481,116710.0,116700.0,0.93657226]
[1754780714002,0.28754648,116710.0,116700.0,0.67461393]
[1754780714207,0.54950481,116710.0,116700.0,0.82860323]
[1754780714914,0.28754648,116710.0,116700.0,0.82860323]
[1754780715115,0.54950481,116710.0,116700.0,0.5666449]
[1754780717316,0.54950481,116710.0,116700.0,0.67461393]
[1754780717514,0.54950481,116710.0,116700.0,0.31381393]
[1754780718817,0.28754648,116710.0,116700.0,0.57577226]
[1754780719012,0.54950481,116710.0,116700.0,0.57577226]
[1754780719307,0.54950481,116710.0,116700.0,0.31381393]
[1754780720318,0.28754648,116710.0,116700.0,0.31381393]
[1754780720816,0.54950481,116710.0,116700.0,0.31381393]
[1754780721026,0.28754648,116710.0,116700.0,0.67461393]
[1754780721319,0.54950481,116710.0,116700.0,0.93657226]
[1754780722119,0.28754648,116710.0,116700.0,0.67461393]
[1754780722321,0.54950481,116710.0,116700.0,0.67461393]
[1754780723221,0.28754648,116710.0,116700.0,0.67461393]
[1754780723420,0.54950481,116710.0,116700.0,0.93657226]
[1754780723621,0.28754648,116710.0,116700.0,0.93657226]
[1754780723823,0.54950481,116710.0,116700.0,0.93657226]
[1754780724216,0.28754648,116710.0,116700.0,0.67461393]
[1754780724521,0.28754648,116710.0,116700.0,0.93657226]
[1754780724921,0.2781125,116710.0,116700.0,0.67461393]
[1754780725113,0.54007083,116710.0,116700.0,0.67461393]
[1754780725319,0.54007083,116710.0,116700.0,0.93657226]
[1754780725518,0.2781125,116710.0,116700.0,0.67461393]
[1754780725719,0.54007083,116710.0,116700.0,0.93657226]
[1754780726120,0.2781125,116710.0,116700.0,0.93657226]
[1754780726422,0.54007083,116710.0,116700.0,0.93657226]
[1754780726819,0.2781125,116710.0,116700.0,0.93657226]
[1754780727019,0.54007083,116710.0,116700.0,0.93657226]
[1754780727516,0.54007083,116710.0,116700.0,0.67461393]
[1754780727722,0.54007083,116710.0,116700.0,0.93657226]
[1754780727923,0.54963294,116710.0,116700.0,0.67461393]
[1754780728223,0.28767461,116710.0,116700.0,0.93657226]
[1754780728423,0.54963294,116710.0,116700.0,0.93657226]
[1754780729426,0.28767461,116710.0,116700.0,0.93657226]
[1754780729625,0.54963294,116710.0,116700.0,0.93657226]
[1754780730722,0.28767461,116710.0,116700.0,0.93657226]
[1754780731021,0.01911239,116720.0,116700.0,1.29861669]
[1754780731222,0.46440652,116720.0,116710.0,1.65350693]
[1754780731417,0.72979485,116720.0,116710.0,1.76147596]
[1754780731619,0.72979485,116720.0,116710.0,1.49951763]
[1754780731815,0.73912231,116720.0,116710.0,1.76147596]
[1754780732021,0.73912231,116720.0,116710.0,1.49951763]
[1754780732227,0.74412231,116720.0,116710.0,1.49951763]
[1754780732620,0.74412231,116720.0,116710.0,1.13871763]
[1754780732815,0.74212231,116720.0,116710.0,1.21586097]
[1754780733125,0.74412231,116720.0,116710.0,1.10789194]
[1754780733324,0.74412231,116720.0,116710.0,0.28349194]
[1754780733528,1.82736064,116720.0,116710.0,0.23400194]
[1754780733729,1.56740231,116720.0,116710.0,0.23400194]
[1754780734032,1.56740231,116720.0,116710.0,0.10010334]
[1754780735522,0.56099326,116720.0,116710.0,0.14834334]
[1754780735723,0.56099326,116720.0,116710.0,0.28160194]
[1754780736035,1.08490992,116720.0,116710.0,0.28160194]
[1754780737928,1.92350992,116720.0,116710.0,0.28160194]
[1754780740327,1.92350992,116720.0,116710.0,0.19594334]
[1754780741331,1.92350992,116720.0,116710.0,0.18133334]
[1754780744031,1.92350992,116720.0,116710.0,0.14834334]
[1754780744235,1.92350992,116720.0,116710.0,0.11589334]
[1754780744430,0.0972687,116710.0,116700.0,0.20950237]
[1754780744734,0.100806,116700.0,116690.0,0.10153334]
[1754780745029,1.82108266,116700.0,116690.0,0.13225903]
[1754780745236,1.82108266,116700.0,116690.0,0.2093738]
[1754780745431,1.82108266,116700.0,116690.0,0.07711477]
[1754780745640,0.1008134,116690.0,116680.0,0.3050038]
[1754780745942,0.62473006,116690.0,116680.0,0.21317903]
[1754780746432,0.62473006,116690.0,116680.0,0.07222]
[1754780746635,0.98553006,116690.0,116680.0,0.1492998]
[1754780747230,0.4616134,116690.0,116680.0,0.1492998]
[1754780747430,0.4616134,116690.0,116680.0,0.1968998]
[1754780747431,0.98553006,116690.0,116680.0,0.1968998]
[1754780748024,0.98553006,116690.0,116680.0,0.1988998]
[1754780749030,0.98553006,116690.0,116680.0,0.12182]
[1754780749940,0.98553006,116690.0,116680.0,0.12282]
[1754780750141,0.98573006,116690.0,116680.0,0.12302]
[1754780750533,0.98573006,116690.0,116680.0,0.12202]
[1754780750734,0.98773006,116690.0,116680.0,0.12202]
[1754780751545,0.98773006,116690.0,116680.0,0.10741]
[1754780751838,0.98773006,116690.0,116680.0,0.02649]
[1754780752143,0.98773006,116690.0,116680.0,0.08806218]
[1754780752541,0.98973006,116690.0,116680.0,0.08606218]
[1754780753140,0.98973006,116690.0,116680.0,0.02449]
[1754780755038,0.4658134,116690.0,116680.0,0.02449]
[1754780755244,0.98973006,116690.0,116680.0,0.02449]
[1754780757248,0.98973006,116690.0,116680.0,0.07060624]
[1754780760059,0.98963006,116690.0,116680.0,0.07060624]
[1754780761461,0.4657134,116690.0,116680.0,0.07060624]
[1754780761964,0.98963006,116690.0,116680.0,0.07060624]
[1754780767670,0.4657134,116690.0,116680.0,0.07060624]
[1754780767869,0.98963006,116690.0,116680.0,0.07060624]
[1754780768470,0.4657134,116690.0,116680.0,0.07060624]
[1754780768767,0.98963006,116690.0,116680.0,0.07060624]
[1754780770165,0.98963006,116690.0,116680.0,0.02449]
[1754780770373,0.4657134,116690.0,116680.0,0.02376]
[1754780770562,0.98963006,116690.0,116680.0,0.02376]
[1754780770969,0.98963006,116690.0,116680.0,0.08533218]
[1754780773574,1.35043006,116690.0,116680.0,0.08533218]
[1754780775173,1.35043006,116690.0,116680.0,0.02376]
[1754780776477,1.35043006,116690.0,116680.0,0.0002]
[1754780776666,1.35043006,116690.0,116680.0,0.06190446]
[1754780777269,1.35043006,116690.0,116680.0,0.02376]
[1754780778780,0.8265134,116690.0,116680.0,0.02376]
[1754780778972,1.35043006,116690.0,116680.0,0.02376]
[1754780780568,0.8265134,116690.0,116680.0,0.02376]
[1754780780769,1.35043006,116690.0,116680.0,0.02376]
[1754780782573,1.35043006,116690.0,116680.0,0.1008398]
[1754780782782,1.35043006,116690.0,116680.0,0.1483298]
[1754780784979,1.35043006,116690.0,116680.0,0.1726998]
[1754780786587,1.35043006,116690.0,116680.0,0.1574898]
[1754780786988,1.35043006,116690.0,116680.0,0.1726998]
[1754780787587,1.35043006,116690.0,116680.0,0.1574898]
[1754780789288,1.35043006,116690.0,116680.0,0.1254598]
[1754780789486,1.35043006,116690.0,116680.0,0.04838]
[1754780791885,0.98963006,116690.0,116680.0,0.04838]
[1754780792886,0.98963006,116690.0,116680.0,0.03922]
[1754780793087,0.4657134,116690.0,116680.0,0.1008398]
[1754780793287,0.98963006,116690.0,116680.0,0.1008398]
[1754780795193,0.98963006,116690.0,116680.0,0.0772798]
[1754780795194,1.25158839,116690.0,116680.0,0.0772798]
[1754780795392,1.25158839,116690.0,116680.0,0.06195222]
[1754780797996,0.98963006,116690.0,116680.0,0.06195222]
[1754780798191,1.25158839,116690.0,116680.0,0.06195222]
[1754780798396,1.25158839,116690.0,116680.0,0.10825845]
[1754780798896,1.25158839,116690.0,116680.0,0.04650623]
[1754780801489,1.25138839,116690.0,116680.0,0.04107623]
[1754780803391,1.28365278,116690.0,116680.0,0.04107623]
[1754780803692,0.0856807,116680.0,116670.0,0.08517222]
[1754780803888,2.07163697,116680.0,116670.0,0.08507222]
[1754780804198,2.43243697,116680.0,116670.0,0.08507222]
[1754780804698,2.43243697,116680.0,116670.0,0.17862222]
[1754780804892,2.43343697,116680.0,116670.0,0.17862222]
[1754780805700,2.43443697,116680.0,116670.0,0.17862222]
[1754780807500,2.50187655,116680.0,116670.0,0.17862222]
[1754780814400,1.78027655,116680.0,116670.0,0.17862222]
[1754780814603,2.50187655,116680.0,116670.0,0.17862222]
[1754780817007,2.50187655,116680.0,116670.0,0.16398222]
[1754780822809,2.50187655,116680.0,116670.0,0.13159222]
[1754780823015,2.50207655,116680.0,116670.0,0.13179222]
[1754780826911,2.50207655,116680.0,116670.0,0.11043222]
[1754780827315,2.50207655,116680.0,116670.0,0.04868]
[1754780828013,1.78047655,116680.0,116670.0,0.04868]
[1754780828210,2.50207655,116680.0,116670.0,0.04868]
[1754780828411,2.50207655,116680.0,116670.0,0.03869]
[1754780828910,2.50207655,116680.0,116670.0,0.1157698]
[1754780829115,2.50207655,116680.0,116670.0,0.03869]
[1754780830214,2.50207655,116680.0,116670.0,0.1157698]
[1754780830513,1.71620156,116680.0,116670.0,0.1157698]
[1754780830716,2.50207655,116680.0,116670.0,0.1157698]
[1754780834017,2.50207655,116680.0,116670.0,0.03869]
[1754780834620,2.50207655,116680.0,116670.0,0.1157698]
[1754780836521,2.50207655,116680.0,116670.0,0.1005998]
[1754780836817,2.50207655,116680.0,116670.0,0.02352]
[1754780837221,1.71620156,116680.0,116670.0,0.02416]
[1754780837420,2.50207655,116680.0,116670.0,0.02416]
[1754780837920,2.50207655,116680.0,116670.0,0.0859232]
[1754780839416,2.50207655,116680.0,116670.0,0.10828436]
[1754780839719,2.50207655,116680.0,116670.0,0.04652116]
[1754780841125,0.0856878,116670.0,116660.0,0.0618632]
[1754780841423,0.10506736,116660.0,116650.0,0.1344732]
[1754780841624,2.06814235,116660.0,116650.0,0.1826432]
[1754780843725,2.06814235,116660.0,116650.0,0.1846432]
[1754780843930,1.28226736,116660.0,116650.0,0.1876432]
[1754780844227,2.06814235,116660.0,116650.0,0.1876432]
[1754780844414,2.07014235,116660.0,116650.0,0.1826432]
[1754780844619,2.07114235,116660.0,116650.0,0.1826432]
[1754780845524,2.07114235,116660.0,116650.0,0.1682832]
[1754780845724,2.07114235,116660.0,116650.0,0.02396]
[1754780846924,2.07114235,116660.0,116650.0,0.03979]
[1754780847126,2.07114235,116660.0,116650.0,0.12088]
[1754780848230,2.07114235,116660.0,116650.0,0.1826432]
[1754780849025,2.07114235,116660.0,116650.0,0.12088]
[1754780849435,2.07114235,116660.0,116650.0,0.1826432]
[1754780851132,2.07114235,116660.0,116650.0,0.12088]
[1754780852233,2.43194235,116660.0,116650.0,0.12088]
[1754780855744,2.43194235,116660.0,116650.0,0.1826432]
[1754780862849,2.43194235,116660.0,116650.0,0.1682832]
[1754780863148,2.43214235,116660.0,116650.0,0.1684832]
[1754780863344,2.43214235,116660.0,116650.0,0.1345732]
[1754780865051,1.71054235,116660.0,116650.0,0.1345732]
[1754780865249,2.43214235,116660.0,116650.0,0.1345732]
[1754780867751,1.64626736,116660.0,116650.0,0.1345732]
[1754780867946,2.43214235,116660.0,116650.0,0.1345732]
[1754780871948,2.43214235,116660.0,116650.0,0.0619632]
[1754780872151,2.43214235,116660.0,116650.0,0.0849932]
[1754780873249,0.0857025,116650.0,116640.0,0.1159698]
[1754780873552,0.97041916,116650.0,116640.0,0.1158698]
[1754780874152,0.97041916,116650.0,116640.0,0.0770798]
[1754780874350,0.97041916,116650.0,116640.0,0.1001098]
[1754780874553,0.97141916,116650.0,116640.0,0.1001098]
[1754780874947,0.4475025,116650.0,116640.0,0.1001098]
[1754780875256,0.97141916,116650.0,116640.0,0.1001098]
[1754780875756,0.97141916,116650.0,116640.0,0.1319998]
[1754780876352,0.97141916,116650.0,116640.0,0.1477598]
[1754780876653,0.9807589,116650.0,116640.0,0.1708098]
[1754780879060,0.9807589,116650.0,116640.0,0.09373]
[1754780881352,1.3415589,116650.0,116640.0,0.09373]
[1754780882861,1.3415589,116650.0,116640.0,0.11476]
[1754780886359,1.3415589,116650.0,116640.0,0.17649141]
[1754780886961,1.3415589,116650.0,116640.0,0.17776141]
[1754780888461,0.45684224,116650.0,116640.0,0.38020833]
[1754780888661,0.45684224,116650.0,116640.0,1.16575666]
[1754780888662,0.09604224,116650.0,116640.0,1.16575666]
[1754780888967,0.35800057,116650.0,116640.0,0.92148366]
[1754780889358,0.35800057,116650.0,116640.0,0.65952533]
[1754780889558,0.35800057,116650.0,116640.0,0.92148366]
[1754780893666,0.35800057,116650.0,116640.0,0.47497346]
[1754780893963,0.35820057,116650.0,116640.0,0.29892533]
[1754780894555,0.35820057,116650.0,116640.0,0.56088366]
[1754780894755,0.09624224,116650.0,116640.0,0.56088366]
[1754780894958,0.35820057,116650.0,116640.0,0.56088366]
[1754780896163,0.35820057,116650.0,116640.0,0.29892533]
[1754780896367,1.17308057,116650.0,116640.0,0.29892533]
[1754780896770,1.17308057,116650.0,116640.0,0.21321513]
[1754780896969,1.17308057,116650.0,116640.0,0.56088366]
[1754780896970,0.35820057,116650.0,116640.0,0.56088366]
[1754780900476,0.35820057,116650.0,116640.0,0.48380386]
[1754780903872,0.35820057,116650.0,116640.0,0.56087926]
[1754780908374,0.35820057,116650.0,116640.0,0.29892093]
[1754780908582,0.35820057,116650.0,116640.0,0.56087926]
[1754780909983,0.35820057,116650.0,116640.0,0.92167926]
[1754780910782,0.35820057,116650.0,116640.0,0.65972093]
[1754780910982,0.35820057,116650.0,116640.0,0.56087926]
[1754780911175,0.35820057,116650.0,116640.0,0.21321073]
[1754780911374,0.6201589,116650.0,116640.0,0.21321073]
[1754780911586,0.9809589,116650.0,116640.0,0.1003054]
[1754780911786,0.9809589,116650.0,116640.0,0.06188362]
[1754780912083,0.9809589,116650.0,116640.0,0.02489]
[1754780912886,0.9809589,116650.0,116640.0,0.08657362]
[1754780913277,0.45704224,116650.0,116640.0,0.08657362]
[1754780913477,0.9809589,116650.0,116640.0,0.08657362]
[1754780918289,1.3417589,116650.0,116640.0,0.08657362]
[1754780918886,1.3417589,116650.0,116640.0,0.02489]
[1754780919086,1.3417589,116650.0,116640.0,0.08657362]
[1754780919287,1.3417589,116650.0,116640.0,0.0002]
[1754780919481,1.3417589,116650.0,116640.0,0.08651362]
[1754780922190,1.3417589,116650.0,116640.0,0.02483]
[1754780923693,0.81784224,116650.0,116640.0,0.02483]
[1754780923894,1.3417589,116650.0,116640.0,0.02483]
[1754780924690,0.81784224,116650.0,116640.0,0.18084362]
[1754780924994,1.89328057,116650.0,116640.0,0.18084362]
[1754780926989,2.1552389,116650.0,116640.0,0.18084362]
[1754780928291,2.1552389,116650.0,116640.0,0.16694362]
[1754780928595,2.1552389,116650.0,116640.0,0.08651362]
[1754780928795,2.1552389,116650.0,116640.0,0.06188362]
[1754780929093,2.1552389,116650.0,116640.0,0.08651362]
[1754780935702,1.63132224,116650.0,116640.0,0.08651362]
[1754780935904,2.1552389,116650.0,116640.0,0.08651362]
[1754780936607,2.1552389,116650.0,116640.0,0.13640362]
[1754780936809,2.1552389,116650.0,116640.0,0.15980362]
[1754780937105,2.1552389,116650.0,116640.0,0.18084362]
[1754780942805,1.3417589,116650.0,116640.0,0.08651362]
[1754780943010,1.63040224,116650.0,116640.0,0.11916]
[1754780943213,1.89236057,116650.0,116640.0,0.11916]
[1754780944810,2.1543189,116650.0,116640.0,0.11916]
[1754780946010,2.1543189,116650.0,116640.0,0.0002]
[1754780946410,2.1543189,116650.0,116640.0,0.02335]
[1754780947808,2.1543189,116650.0,116640.0,0.1004254]
[1754780948814,2.1543189,116650.0,116640.0,0.02335]
[1754780949915,2.1543189,116650.0,116640.0,0.1004254]
[1754780953915,2.1543189,116650.0,116640.0,0.02335]
[1754780955704,2.1543189,116650.0,116640.0,0.08510621]
[1754780957812,1.3417589,116650.0,116640.0,0.08510621]
[1754780958014,1.89156057,116650.0,116640.0,0.18139621]
[1754780960720,1.07980057,116650.0,116640.0,0.18139621]
[1754780961019,1.89148057,116650.0,116640.0,0.18139621]
[1754780962420,1.53068057,116650.0,116640.0,0.18139621]
[1754780963020,1.53068057,116650.0,116640.0,0.19893374]
[1754780963710,1.26872224,116650.0,116640.0,0.19893374]
[1754780964113,1.53068057,116650.0,116640.0,0.19893374]
[1754780965525,1.53068057,116650.0,116640.0,0.13717753]
[1754780968522,1.7926389,116650.0,116640.0,0.13717753]
[1754780969425,1.4318389,116650.0,116640.0,0.13717753]
[1754780970417,1.16988057,116650.0,116640.0,0.13717753]
[1754780972918,1.4318389,116650.0,116640.0,0.13717753]
[1754780973919,1.4318389,116650.0,116640.0,0.21425293]
[1754780981233,1.7926389,116650.0,116640.0,0.21425293]
[1754780982334,1.7926389,116650.0,116640.0,0.20073293]
[1754780982534,1.7926389,116650.0,116640.0,0.11796293]
[1754780985535,1.7926389,116650.0,116640.0,0.17972934]
[1754780985723,1.7926389,116650.0,116640.0,0.10265394]
[1754780992027,1.7926389,116650.0,116640.0,0.13577394]
[1754780992426,1.7926389,116650.0,116640.0,0.15164394]
[1754780993839,1.7926389,116650.0,116640.0,0.08987753]
[1754780996634,1.7926389,116650.0,116640.0,0.16695293]
[1754781000840,1.7926389,116650.0,116640.0,0.13383293]
[1754781007845,1.7926389,116650.0,116640.0,0.05675753]
[1754781008946,1.7926389,116650.0,116640.0,0.13383293]
[1754781014249,1.7926389,116650.0,116640.0,0.05675753]
[1754781014953,1.7926389,116650.0,116640.0,0.11853588]
[1754781016751,1.7926389,116650.0,116640.0,0.05675753]
[1754781019753,1.4318389,116650.0,116640.0,0.05675753]
[1754781019953,1.7926389,116650.0,116640.0,0.05675753]
[1754781020654,1.4318389,116650.0,116640.0,0.05675753]
[1754781020855,1.7926389,116650.0,116640.0,0.05675753]
[1754781021453,1.26872224,116650.0,116640.0,0.05675753]
[1754781021754,1.7926389,116650.0,116640.0,0.05675753]
[1754781022052,1.7926389,116650.0,116640.0,0.08855753]
[1754781022253,1.26872224,116650.0,116640.0,0.08855753]
[1754781022552,1.7926389,116650.0,116640.0,0.08855753]
[1754781024857,1.7926389,116650.0,116640.0,0.16563293]
[1754781035464,1.81157207,116650.0,116640.0,0.16563293]
[1754781035665,1.81157207,116650.0,116640.0,0.13383293]
[1754781037768,1.81157207,116650.0,116640.0,0.1162954]
[1754781038070,1.45077207,116650.0,116640.0,0.1162954]
[1754781038270,1.81157207,116650.0,116640.0,0.1162954]
[1754781040165,1.81157207,116650.0,116640.0,0.1483354]
[1754781040368,1.81157207,116650.0,116640.0,0.1942554]
[1754781050380,1.81157207,116650.0,116640.0,0.25603437]
[1754781050580,1.81157207,116650.0,116640.0,0.17895897]
[1754781051283,1.81157207,116650.0,116640.0,0.06197897]
[1754781053986,1.81157207,116650.0,116640.0,0.08610897]
[1754781070198,1.81157207,116650.0,116640.0,0.02433]
[1754781070499,1.81157207,116650.0,116640.0,0.1014054]
[1754781074001,1.81157207,116650.0,116640.0,0.02433]
[1754781077303,1.81157207,116650.0,116640.0,0.0860966]
[1754781081601,1.28765541,116650.0,116640.0,0.0860966]
[1754781081807,1.81157207,116650.0,116640.0,0.0860966]
[1754781083701,1.81157207,116650.0,116640.0,0.02433]
[1754781083902,1.81157207,116650.0,116640.0,0.08611198]
[1754781085402,1.81157207,116650.0,116640.0,0.02433]
[1754781085605,1.81157207,116650.0,116640.0,0.086112]
[1754781086305,1.81157207,116650.0,116640.0,0.02433]
[1754781091706,1.81157207,116650.0,116640.0,0.07221]
[1754781092013,1.81157207,116650.0,116640.0,0.11978]
[1754781092309,1.54961374,116650.0,116640.0,0.11978]
[1754781092506,1.81157207,116650.0,116640.0,0.11978]
[1754781093813,1.28765541,116650.0,116640.0,0.1968554]
[1754781094014,1.81157207,116650.0,116640.0,0.11978]
[1754781099417,1.81157207,116650.0,116640.0,0.10484]
[1754781100817,1.81157207,116650.0,116640.0,0.07221]
[1754781103722,1.28765541,116650.0,116640.0,0.07221]
[1754781104023,1.54961374,116650.0,116640.0,0.04999]
[1754781104222,1.54961374,116650.0,116640.0,0.02433]
[1754781108127,1.18881374,116650.0,116640.0,0.02433]
[1754781108327,1.54961374,116650.0,116640.0,0.02433]
[1754781108728,1.54961374,116650.0,116640.0,0.08610546]
[1754781108927,1.81157207,116650.0,116640.0,0.06197546]
[1754781109227,1.81157207,116650.0,116640.0,0.08615546]
[1754781116833,1.81157207,116650.0,116640.0,0.02438]
[1754781123837,1.81157207,116650.0,116640.0,0.08615756]
[1754781127939,1.81157207,116650.0,116640.0,0.02438]
[1754781131642,1.81157207,116650.0,116640.0,0.1014554]
[1754781133937,1.81157207,116650.0,116640.0,0.02438]
[1754781137448,2.17237207,116650.0,116640.0,0.02438]
[1754781138445,2.08666957,116650.0,116640.0,0.02438]
[1754781138647,2.17237207,116650.0,116640.0,0.02438]
[1754781139349,2.17237207,116650.0,116640.0,0.1014554]
[1754781139646,2.17237207,116650.0,116640.0,0.02438]
[1754781144955,2.17237207,116650.0,116640.0,0.0002]
[1754781145862,2.4343304,116650.0,116640.0,0.0002]
[1754781146155,2.17237207,116650.0,116640.0,0.0002]
[1754781146749,2.17237207,116650.0,116640.0,0.0234]
[1754781147056,2.17237207,116650.0,116640.0,0.08517675]
[1754781147951,2.17237207,116650.0,116640.0,0.06197675]
[1754781149458,2.17237207,116650.0,116640.0,0.08517675]
[1754781151262,2.17237207,116650.0,116640.0,0.06197675]
[1754781151559,2.17237207,116650.0,116640.0,0.0002]
[1754781151560,2.4343304,116650.0,116640.0,0.0002]
[1754781152874,2.17237207,116650.0,116640.0,0.0234]
[1754781153074,2.17237207,116650.0,116640.0,0.0002]
[1754781153279,2.17237207,116650.0,116640.0,0.0234]
[1754781153464,2.17237207,116650.0,116640.0,0.08517675]
[1754781155081,1.64845541,116650.0,116640.0,0.08517675]
[1754781155474,2.17237207,116650.0,116640.0,0.08517675]
[1754781155683,2.1723702,116650.0,116640.0,0.08517675]
[1754781156783,2.1723702,116650.0,116640.0,0.06197675]
[1754781157087,2.43432853,116650.0,116640.0,0.07071678]
[1754781157381,2.1723702,116650.0,116640.0,0.07071678]
[1754781163384,2.43432853,116650.0,116640.0,0.07071678]
[1754781164185,2.1723702,116650.0,116640.0,0.07071678]
[1754781164973,2.1723702,116650.0,116640.0,0.04651678]
[1754781164974,2.43432853,116650.0,116640.0,0.04651678]
[1754781165173,2.1723702,116650.0,116640.0,0.04651678]
[1754781165381,2.43432853,116650.0,116640.0,0.10829353]
[1754781165777,2.43432853,116650.0,116640.0,0.13249353]
[1754781168590,2.43472984,116650.0,116640.0,0.13249353]
[1754781168886,2.17277151,116650.0,116640.0,0.13249353]
[1754781172188,2.1534389,116650.0,116640.0,0.13249353]
[1754781172489,2.17249104,116650.0,116640.0,0.13249353]
[1754781173789,2.43444937,116650.0,116640.0,0.13249353]
[1754781174288,2.17249104,116650.0,116640.0,0.13249353]
[1754781175086,2.17249104,116650.0,116640.0,0.07071678]
[1754781175485,2.43444937,116650.0,116640.0,0.07071678]
[1754781177679,2.17249104,116650.0,116640.0,0.07071678]
[1754781179191,2.43444937,116650.0,116640.0,0.07071678]
[1754781180981,2.43444937,116650.0,116640.0,0.13249353]
[1754781182987,2.43444937,116650.0,116640.0,0.10829353]
[1754781183193,2.43444937,116650.0,116640.0,0.07071678]
[1754781183792,2.17249104,116650.0,116640.0,0.07071678]
[1754781183991,2.17249104,116650.0,116640.0,0.13249353]
[1754781188098,2.18941674,116650.0,116640.0,0.13249353]
[1754781188303,2.18941674,116650.0,116640.0,0.07071678]
[1754781194910,2.17249104,116650.0,116640.0,0.13249353]
[1754781196107,1.45089104,116650.0,116640.0,0.08617675]
[1754781196307,2.17249104,116650.0,116640.0,0.08617675]
[1754781200113,2.17249104,116650.0,116640.0,0.13251405]
[1754781202115,2.17249104,116650.0,116640.0,0.22919405]
[1754781210216,2.17249104,116650.0,116640.0,0.18285675]
[1754781211414,2.17249104,116650.0,116640.0,0.11156675]
[1754781211612,2.1895919,116650.0,116640.0,0.0244]
[1754781212918,2.18993416,116650.0,116640.0,0.0244]
[1754781216424,2.17053976,116650.0,116640.0,0.0244]
[1754781217721,2.18989998,116650.0,116640.0,0.0244]
[1754781219128,2.18989998,116650.0,116640.0,0.11938]
[1754781220128,2.18989998,116650.0,116640.0,0.16571673]
[1754781221330,2.17279912,116650.0,116640.0,0.16571673]
[1754781225927,1.64888246,116650.0,116640.0,0.16571673]
[1754781226122,2.17279912,116650.0,116640.0,0.16571673]
[1754781228329,2.17279912,116650.0,116640.0,0.22749348]
[1754781229330,2.17279912,116650.0,116640.0,0.18115675]
[1754781234443,2.17279912,116650.0,116640.0,0.16642675]
[1754781237737,1.45119912,116650.0,116640.0,0.16642675]
[1754781237933,2.17279912,116650.0,116640.0,0.16642675]
[1754781239643,2.17279912,116650.0,116640.0,0.13308675]
[1754781248045,2.17279912,116650.0,116640.0,0.07131]
[1754781250449,2.17279912,116650.0,116640.0,0.13308675]
[1754781251038,2.17279912,116650.0,116640.0,0.07131]
[1754781254055,2.17279912,116650.0,116640.0,0.11764761]
[1754781256450,2.17279912,116650.0,116640.0,0.17942436]
[1754781257751,2.43475745,116650.0,116640.0,0.17942436]
[1754781259556,2.43475745,116650.0,116640.0,0.13308675]
[1754781265157,2.43475745,116650.0,116640.0,0.07131]
[1754781266752,2.43475745,116650.0,116640.0,0.05007]
[1754781270561,2.43475745,116650.0,116640.0,0.07073864]
[1754781274166,2.43475745,116650.0,116640.0,0.13251539]
[1754781275670,2.43475745,116650.0,116640.0,0.08617675]